[Event "*** MasterClass Titled Tuesday Blitz"]
[Site "Chess.com"]
[Date "2017.12.12"]
[Round "7"]
[White "SenseiJulio"]
[Black "daro94"]
[Result "0-1"]
[WhiteElo "2536"]
[BlackElo "2664"]
[TimeControl "180+2"]
[EndTime "14:41:51 PST"]
[Termination "daro94 won by resignation"]

1. Nf3 {[%clk 0:03:01.9]} 1... Nf6 {[%clk 0:03:00.8]} 2. e3 {[%clk 0:02:57.9]}
2... g6 {[%clk 0:03:01]} 3. d4 {[%clk 0:02:58.2]} 3... Bg7 {[%clk 0:03:02.5]} 4.
c4 {[%clk 0:02:59.5]} 4... O-O {[%clk 0:03:03.7]} 5. Be2 {[%clk 0:03:01]} 5...
c5 {[%clk 0:03:04.3]} 6. O-O {[%clk 0:03:00.9]} 6... cxd4 {[%clk 0:03:04.7]} 7.
exd4 {[%clk 0:03:02.8]} 7... d5 {[%clk 0:03:05.6]} 8. Nc3 {[%clk 0:03:04.4]}
8... Nc6 {[%clk 0:03:02.5]} 9. h3 {[%clk 0:03:04.3]} 9... b6 {[%clk 0:02:42.4]}
10. Re1 {[%clk 0:02:56.1]} 10... Bb7 {[%clk 0:02:42.6]} 11. Bg5 {[%clk
0:02:56.1]} 11... dxc4 {[%clk 0:02:28.8]} 12. Bxc4 {[%clk 0:02:55.6]} 12... Rc8
{[%clk 0:02:25.8]} 13. Bf1 {[%clk 0:02:31.6]} 13... Nb4 {[%clk 0:01:47.3]} 14.
Rc1 {[%clk 0:02:02.6]} 14... Nbd5 {[%clk 0:01:43.2]} 15. Nxd5 {[%clk 0:02:00.6]}
15... Nxd5 {[%clk 0:01:41.4]} 16. Rxc8 {[%clk 0:02:00.2]} 16... Bxc8 {[%clk
0:01:40]} 17. Qd2 {[%clk 0:01:58.5]} 17... Bb7 {[%clk 0:01:34.8]} 18. Bh6 {[%clk
0:01:52.8]} 18... Qd6 {[%clk 0:01:24.7]} 19. Ne5 {[%clk 0:01:46.8]} 19... Qb4
{[%clk 0:01:03.3]} 20. Qxb4 {[%clk 0:01:43.5]} 20... Nxb4 {[%clk 0:01:05.2]} 21.
Bxg7 {[%clk 0:01:41.5]} 21... Kxg7 {[%clk 0:01:06.5]} 22. a3 {[%clk 0:01:33.5]}
22... Nd5 {[%clk 0:01:06.7]} 23. Rc1 {[%clk 0:01:26.2]} 23... f6 {[%clk
0:00:59.6]} 24. Ng4 {[%clk 0:01:18.7]} 24... Rc8 {[%clk 0:00:31.7]} 25. Rxc8
{[%clk 0:01:18.4]} 25... Bxc8 {[%clk 0:00:33.6]} 26. Ne3 {[%clk 0:01:19.2]}
26... Nf4 {[%clk 0:00:32.9]} 27. d5 {[%clk 0:01:09.7]} 27... Kf8 {[%clk
0:00:18.6]} 28. Kh2 {[%clk 0:01:08.3]} 28... f5 {[%clk 0:00:19.4]} 29. Bb5
{[%clk 0:00:58.6]} 29... Bb7 {[%clk 0:00:12.5]} 30. Bc6 {[%clk 0:00:53.4]} 30...
Ba6 {[%clk 0:00:08.1]} 31. b4 {[%clk 0:00:49.5]} 31... Nd3 {[%clk 0:00:09.4]}
32. f3 {[%clk 0:00:37.6]} 32... Ne5 {[%clk 0:00:08.5]} 33. b5 {[%clk 0:00:33.8]}
33... Bc8 {[%clk 0:00:09.8]} 34. Nc2 {[%clk 0:00:31.2]} 34... Nc4 {[%clk
0:00:09.7]} 35. Kg3 {[%clk 0:00:26]} 35... Kg7 {[%clk 0:00:10.1]} 36. Kf2 {[%clk
0:00:24.4]} 36... Kf6 {[%clk 0:00:10.9]} 37. f4 {[%clk 0:00:24.5]} 37... g5
{[%clk 0:00:11.5]} 38. g3 {[%clk 0:00:25.5]} 38... h6 {[%clk 0:00:13.1]} 39. Ke2
{[%clk 0:00:25.8]} 39... Nd6 {[%clk 0:00:09.5]} 40. Nd4 {[%clk 0:00:22.8]} 40...
Ne4 {[%clk 0:00:10.6]} 41. Kf3 {[%clk 0:00:22.6]} 41... Nd2+ {[%clk 0:00:12.1]}
42. Ke2 {[%clk 0:00:22.8]} 42... Nc4 {[%clk 0:00:13.6]} 43. Nc2 {[%clk
0:00:22.7]} 43... e5 {[%clk 0:00:08.5]} 44. Kd3 {[%clk 0:00:17]} 44... Nd6
{[%clk 0:00:09.1]} 45. fxe5+ {[%clk 0:00:16.2]} 45... Kxe5 {[%clk 0:00:11]} 46.
Ne3 {[%clk 0:00:17.2]} 46... f4 {[%clk 0:00:11.2]} 47. gxf4+ {[%clk 0:00:18.5]}
47... gxf4 {[%clk 0:00:12.7]} 48. Ng4+ {[%clk 0:00:16.9]} 48... Bxg4 {[%clk
0:00:13.6]} 49. hxg4 {[%clk 0:00:18.8]} 49... Ne4 {[%clk 0:00:11.8]} 50. Bd7
{[%clk 0:00:18.1]} 50... Nf6 {[%clk 0:00:11.6]} 51. Bf5 {[%clk 0:00:14.5]} 51...
Nxd5 {[%clk 0:00:10.6]} 52. Bc8 {[%clk 0:00:14]} 52... Ne3 {[%clk 0:00:11.2]}
53. Bd7 {[%clk 0:00:14.2]} 53... Nd5 {[%clk 0:00:12.5]} 54. Bc8 {[%clk
0:00:15.3]} 54... Nf6 {[%clk 0:00:13.5]} 55. a4 {[%clk 0:00:10.6]} 55... Ne4
{[%clk 0:00:14.1]} 56. Ke2 {[%clk 0:00:09.4]} 56... Nc3+ {[%clk 0:00:14.9]} 57.
Kf3 {[%clk 0:00:10.4]} 57... Nxa4 {[%clk 0:00:16.8]} 58. Bb7 {[%clk 0:00:11.6]}
58... Nc5 {[%clk 0:00:16.9]} 59. Bc6 {[%clk 0:00:13.1]} 59... Ne6 {[%clk
0:00:18.1]} 60. Be8 {[%clk 0:00:13.5]} 60... Ng5+ {[%clk 0:00:19]} 61. Kf2
{[%clk 0:00:14.8]} 61... Kd4 {[%clk 0:00:20.6]} 62. Bc6 {[%clk 0:00:15.9]} 62...
Nf7 {[%clk 0:00:18.6]} 63. Kf3 {[%clk 0:00:14.3]} 63... Ke5 {[%clk 0:00:20.1]}
64. Be8 {[%clk 0:00:14]} 64... Ng5+ {[%clk 0:00:22]} 65. Kf2 {[%clk 0:00:15.2]}
65... Kd6 {[%clk 0:00:22.5]} 66. Ke2 {[%clk 0:00:14.2]} 66... Ke7 {[%clk
0:00:23.1]} 67. Bc6 {[%clk 0:00:14.6]} 67... Ke6 {[%clk 0:00:24.3]} 68. Kf2
{[%clk 0:00:15.4]} 68... Kd6 {[%clk 0:00:25.7]} 69. Be8 {[%clk 0:00:15.9]} 69...
Kc5 {[%clk 0:00:27.3]} 70. Bd7 {[%clk 0:00:15.9]} 70... Kd4 {[%clk 0:00:27.5]}
71. Bc6 {[%clk 0:00:15.9]} 71... Kc4 {[%clk 0:00:27.8]} 72. Be8 {[%clk
0:00:16.5]} 72... Kb4 {[%clk 0:00:29.4]} 73. Bd7 {[%clk 0:00:17.3]} 73... Ka5
{[%clk 0:00:30.8]} 74. Be8 {[%clk 0:00:15.4]} 74... a6 {[%clk 0:00:32.2]} 75.
bxa6 {[%clk 0:00:15.9]} 75... Kxa6 {[%clk 0:00:34.1]} 76. Ke2 {[%clk 0:00:16.1]}
76... b5 {[%clk 0:00:33.9]} 77. Kd3 {[%clk 0:00:17.7]} 77... Ka5 {[%clk
0:00:35.1]} 78. Kd4 {[%clk 0:00:18.5]} 78... b4 {[%clk 0:00:36.4]} 79. Bd7
{[%clk 0:00:18.5]} 79... f3 {[%clk 0:00:33.5]} 80. Ke3 {[%clk 0:00:19.3]} 80...
b3 {[%clk 0:00:33.2]} 81. Kd2 {[%clk 0:00:16.4]} 81... Kb4 {[%clk 0:00:34.4]}
82. Bf5 {[%clk 0:00:17]} 82... Kc4 {[%clk 0:00:33.5]} 83. Ke3 {[%clk 0:00:16.2]}
83... Kc3 {[%clk 0:00:34.2]} 84. Bg6 {[%clk 0:00:14.6]} 84... Kb2 {[%clk
0:00:33.4]} 85. Bf5 {[%clk 0:00:14.8]} 85... Ka1 {[%clk 0:00:34.3]} 0-1

[Event "*** MasterClass Titled Tuesday Blitz"]
[Site "Chess.com"]
[Date "2017.12.12"]
[Round "7"]
[White "champ1000"]
[Black "1random"]
[Result "1/2-1/2"]
[WhiteElo "2261"]
[BlackElo "2149"]
[TimeControl "180+2"]
[EndTime "14:42:16 PST"]
[Termination "Game drawn by repetition"]

1. e4 {[%clk 0:03:01.9]} 1... d5 {[%clk 0:02:55.9]} 2. exd5 {[%clk 0:02:57.6]}
2... Nf6 {[%clk 0:02:55.4]} 3. d4 {[%clk 0:02:45.8]} 3... Bg4 {[%clk 0:02:56.2]}
4. Ne2 {[%clk 0:02:45.1]} 4... Nxd5 {[%clk 0:02:49.7]} 5. h3 {[%clk 0:02:40.2]}
5... Bh5 {[%clk 0:02:48.4]} 6. g4 {[%clk 0:02:35.3]} 6... Bg6 {[%clk 0:02:49.2]}
7. Bg2 {[%clk 0:02:28.6]} 7... e6 {[%clk 0:02:49.4]} 8. a3 {[%clk 0:02:28.2]}
8... c6 {[%clk 0:02:38.5]} 9. c4 {[%clk 0:02:27.3]} 9... Nb6 {[%clk 0:02:38.5]}
10. b3 {[%clk 0:02:19.7]} 10... h5 {[%clk 0:02:30.8]} 11. g5 {[%clk 0:02:16.4]}
11... h4 {[%clk 0:02:27.3]} 12. Nbc3 {[%clk 0:02:09.2]} 12... Be7 {[%clk
0:02:24.8]} 13. f4 {[%clk 0:02:03.5]} 13... a5 {[%clk 0:02:02.3]} 14. c5 {[%clk
0:01:57.9]} 14... Nd5 {[%clk 0:02:01.8]} 15. Nxd5 {[%clk 0:01:57.5]} 15... cxd5
{[%clk 0:01:53.2]} 16. O-O {[%clk 0:01:54.9]} 16... Nc6 {[%clk 0:01:47]} 17. Be3
{[%clk 0:01:51.3]} 17... b6 {[%clk 0:01:44.8]} 18. Rc1 {[%clk 0:01:51.2]} 18...
bxc5 {[%clk 0:01:41.4]} 19. dxc5 {[%clk 0:01:49.9]} 19... f6 {[%clk 0:01:33.7]}
20. Nd4 {[%clk 0:01:46]} 20... Qd7 {[%clk 0:01:14.5]} 21. f5 {[%clk 0:01:00.5]}
21... Nxd4 {[%clk 0:00:55.9]} 22. fxg6 {[%clk 0:00:56.2]} 22... Nf5 {[%clk
0:00:41.5]} 23. Rxf5 {[%clk 0:00:44.3]} 23... exf5 {[%clk 0:00:40.1]} 24. Bxd5
{[%clk 0:00:44.7]} 24... O-O-O {[%clk 0:00:31.9]} 25. Bf3 {[%clk 0:00:36.8]}
25... Qxd1+ {[%clk 0:00:29.9]} 26. Rxd1 {[%clk 0:00:38.3]} 26... Rxd1+ {[%clk
0:00:30.3]} 27. Bxd1 {[%clk 0:00:40.2]} 27... fxg5 {[%clk 0:00:29.7]} 28. b4
{[%clk 0:00:40.1]} 28... axb4 {[%clk 0:00:29.4]} 29. axb4 {[%clk 0:00:42]} 29...
Rd8 {[%clk 0:00:25.6]} 30. Bc2 {[%clk 0:00:40.4]} 30... f4 {[%clk 0:00:26.5]}
31. Bf2 {[%clk 0:00:30.7]} 31... Rd2 {[%clk 0:00:25.8]} 32. Bf5+ {[%clk
0:00:31.4]} 32... Kc7 {[%clk 0:00:26.4]} 33. b5 {[%clk 0:00:32.4]} 33... Re2
{[%clk 0:00:09.4]} 34. Bd4 {[%clk 0:00:16.1]} 34... Bxc5 {[%clk 0:00:09.5]} 35.
Kf1 {[%clk 0:00:14]} 35... Re8 {[%clk 0:00:05.7]} 36. Bxg7 {[%clk 0:00:13.9]}
36... Rg8 {[%clk 0:00:04.5]} 37. Be5+ {[%clk 0:00:13.9]} 37... Bd6 {[%clk
0:00:05.3]} 38. Bf6 {[%clk 0:00:13]} 38... Kb6 {[%clk 0:00:05.9]} 39. g7 {[%clk
0:00:13.9]} 39... Kxb5 {[%clk 0:00:05.5]} 40. Be6 {[%clk 0:00:15.1]} 40... Rxg7
{[%clk 0:00:06.1]} 41. Bxg7 {[%clk 0:00:16]} 41... Be7 {[%clk 0:00:07.7]} 42.
Kf2 {[%clk 0:00:16.6]} 42... Kc5 {[%clk 0:00:09.1]} 43. Be5 {[%clk 0:00:15.2]}
43... Kb4 {[%clk 0:00:07.6]} 44. Kf3 {[%clk 0:00:16.2]} 44... Kc5 {[%clk
0:00:08.3]} 45. Ke4 {[%clk 0:00:17.2]} 45... Bd8 {[%clk 0:00:08.4]} 46. Bg4
{[%clk 0:00:17.8]} 46... Kc6 {[%clk 0:00:08.9]} 47. Kf5 {[%clk 0:00:18.1]} 47...
Kd5 {[%clk 0:00:09.9]} 48. Bg7 {[%clk 0:00:18.7]} 48... Kc4 {[%clk 0:00:10.2]}
49. Bf8 {[%clk 0:00:19.5]} 49... Kd3 {[%clk 0:00:11.1]} 50. Bf3 {[%clk
0:00:17.4]} 50... Ke3 {[%clk 0:00:11.9]} 51. Kg4 {[%clk 0:00:18.3]} 51... Bf6
{[%clk 0:00:12.4]} 52. Bc5+ {[%clk 0:00:19.3]} 52... Kd2 {[%clk 0:00:12.8]} 53.
Kf5 {[%clk 0:00:20.5]} 53... Bd8 {[%clk 0:00:13.4]} 54. Bd6 {[%clk 0:00:19.1]}
54... Ke3 {[%clk 0:00:13.7]} 55. Kg4 {[%clk 0:00:18.9]} 55... Bf6 {[%clk
0:00:13]} 56. Bf8 {[%clk 0:00:19.3]} 56... Bd8 {[%clk 0:00:13.4]} 57. Bc5+
{[%clk 0:00:20.4]} 57... Kd2 {[%clk 0:00:13.4]} 58. Bd4 {[%clk 0:00:21.4]} 58...
Kd3 {[%clk 0:00:13.8]} 59. Be5 {[%clk 0:00:22.1]} 59... Ke3 {[%clk 0:00:14.5]}
60. Ba8 {[%clk 0:00:20.8]} 60... Be7 {[%clk 0:00:10.6]} 61. Bc7 {[%clk
0:00:21.7]} 61... Ke2 {[%clk 0:00:08.6]} 62. Bb6 {[%clk 0:00:20.7]} 62... Bf6
{[%clk 0:00:07.4]} 63. Bc5 {[%clk 0:00:21.6]} 63... Bd8 {[%clk 0:00:08.2]} 64.
Bd4 {[%clk 0:00:22.7]} 64... Be7 {[%clk 0:00:09.1]} 65. Bf3+ {[%clk 0:00:22.1]}
65... Kd3 {[%clk 0:00:10]} 66. Ba7 {[%clk 0:00:23.1]} 66... Bd8 {[%clk
0:00:11.1]} 67. Kf5 {[%clk 0:00:22.7]} 67... Be7 {[%clk 0:00:09.8]} 68. Bg4
{[%clk 0:00:22.5]} 68... Bd8 {[%clk 0:00:07.9]} 69. Ke6 {[%clk 0:00:23.6]} 69...
Kd2 {[%clk 0:00:04.4]} 70. Kd7 {[%clk 0:00:21.4]} 70... Bf6 {[%clk 0:00:04.9]}
71. Kd6 {[%clk 0:00:22.5]} 71... Bd8 {[%clk 0:00:04.3]} 72. Kd5 {[%clk
0:00:23.4]} 72... Bf6 {[%clk 0:00:05.1]} 73. Ke4 {[%clk 0:00:24.7]} 73... Bd8
{[%clk 0:00:06]} 74. Kf5 {[%clk 0:00:25.8]} 74... Be7 {[%clk 0:00:06.4]} 75. Bb6
{[%clk 0:00:26.7]} 75... Kd3 {[%clk 0:00:06.4]} 76. Bf3 {[%clk 0:00:25.3]} 76...
Kd2 {[%clk 0:00:06.6]} 77. Ke4 {[%clk 0:00:26.5]} 77... Bf6 {[%clk 0:00:07.1]}
78. Bc7 {[%clk 0:00:27.3]} 78... Be7 {[%clk 0:00:08]} 79. Be5 {[%clk 0:00:28.4]}
79... Bd8 {[%clk 0:00:09.2]} 80. Bd4 {[%clk 0:00:27.9]} 80... Be7 {[%clk
0:00:10.1]} 81. Kf5 {[%clk 0:00:28.4]} 81... Kd3 {[%clk 0:00:10.7]} 82. Bb6
{[%clk 0:00:27.5]} 82... Kd2 {[%clk 0:00:10.7]} 83. Bc7 {[%clk 0:00:28]} 83...
Kd3 {[%clk 0:00:10.9]} 84. Bb6 {[%clk 0:00:27.4]} 84... Kd2 {[%clk 0:00:11.8]}
1/2-1/2

[Event "*** MasterClass Titled Tuesday Blitz"]
[Site "Chess.com"]
[Date "2017.12.12"]
[Round "7"]
[White "aspired"]
[Black "wonderfultime"]
[Result "1/2-1/2"]
[WhiteElo "2542"]
[BlackElo "2698"]
[TimeControl "180+2"]
[EndTime "14:42:30 PST"]
[Termination "Game drawn by agreement"]

1. e4 {[%clk 0:03:01.9]} 1... e6 {[%clk 0:03:00.7]} 2. d4 {[%clk 0:03:02.1]}
2... d5 {[%clk 0:03:02.2]} 3. exd5 {[%clk 0:03:03.5]} 3... exd5 {[%clk
0:03:03.4]} 4. Nf3 {[%clk 0:03:05.4]} 4... Bd6 {[%clk 0:03:04.4]} 5. Bd3 {[%clk
0:03:05.5]} 5... Ne7 {[%clk 0:03:04.4]} 6. O-O {[%clk 0:03:06.2]} 6... O-O
{[%clk 0:03:05.7]} 7. Re1 {[%clk 0:03:06.8]} 7... Bf5 {[%clk 0:03:04]} 8. Bg5
{[%clk 0:02:51.2]} 8... f6 {[%clk 0:03:05.3]} 9. Bh4 {[%clk 0:02:51.8]} 9...
Nbc6 {[%clk 0:03:04.8]} 10. Bg3 {[%clk 0:02:48.8]} 10... Qd7 {[%clk 0:03:00.1]}
11. Bxd6 {[%clk 0:02:48.6]} 11... Qxd6 {[%clk 0:03:00.8]} 12. Bxf5 {[%clk
0:02:42]} 12... Nxf5 {[%clk 0:03:01.6]} 13. Qd3 {[%clk 0:02:43.1]} 13... g6
{[%clk 0:02:42.5]} 14. c3 {[%clk 0:02:43.4]} 14... Rfe8 {[%clk 0:02:39.3]} 15.
Nbd2 {[%clk 0:02:44.7]} 15... Ng7 {[%clk 0:02:36.2]} 16. g3 {[%clk 0:02:27.2]}
16... Nh5 {[%clk 0:02:21.1]} 17. Re2 {[%clk 0:02:14.5]} 17... f5 {[%clk
0:01:54.9]} 18. Rae1 {[%clk 0:02:13.9]} 18... Nf6 {[%clk 0:01:43.5]} 19. Rxe8+
{[%clk 0:02:08.5]} 19... Rxe8 {[%clk 0:01:45.4]} 20. Rxe8+ {[%clk 0:02:08.3]}
20... Nxe8 {[%clk 0:01:45.7]} 21. Qb5 {[%clk 0:02:07.1]} 21... Nf6 {[%clk
0:01:30.1]} 22. Qxb7 {[%clk 0:02:07.3]} 22... Ne4 {[%clk 0:01:26.7]} 23. Qc8+
{[%clk 0:01:58.1]} 23... Kg7 {[%clk 0:01:11.8]} 24. Qe8 {[%clk 0:01:46.7]} 24...
Ne7 {[%clk 0:00:41]} 25. Nxe4 {[%clk 0:01:31.3]} 25... dxe4 {[%clk 0:00:40]} 26.
Ne5 {[%clk 0:01:33.2]} 26... Qe6 {[%clk 0:00:32.4]} 27. Qb8 {[%clk 0:00:54.2]}
27... Qxa2 {[%clk 0:00:12.6]} 28. Qxc7 {[%clk 0:00:52.9]} 28... Kf6 {[%clk
0:00:13.8]} 29. Nd7+ {[%clk 0:00:43.5]} 29... Kf7 {[%clk 0:00:14]} 30. Ne5+
{[%clk 0:00:44.1]} 30... Kf6 {[%clk 0:00:15.1]} 31. Qd6+ {[%clk 0:00:41.3]}
31... Qe6 {[%clk 0:00:15.6]} 32. Qc5 {[%clk 0:00:37.3]} 32... a6 {[%clk
0:00:12.9]} 33. Nc4 {[%clk 0:00:27.1]} 33... g5 {[%clk 0:00:12.3]} 34. Ne3
{[%clk 0:00:15.1]} 34... f4 {[%clk 0:00:11.8]} 35. Ng2 {[%clk 0:00:16.4]} 35...
Ng6 {[%clk 0:00:11.4]} 36. d5 {[%clk 0:00:12]} 36... Qg4 {[%clk 0:00:12.7]} 37.
Qd6+ {[%clk 0:00:11]} 37... Kg7 {[%clk 0:00:14.1]} 38. h4 {[%clk 0:00:06]} 38...
gxh4 {[%clk 0:00:09.2]} 39. Nxf4 {[%clk 0:00:06.9]} 39... hxg3 {[%clk
0:00:09.2]} 40. Ne6+ {[%clk 0:00:07.9]} 40... Kf7 {[%clk 0:00:07]} 41. Qxg3
{[%clk 0:00:09.8]} 41... Qd1+ {[%clk 0:00:07.6]} 42. Kg2 {[%clk 0:00:10.5]}
42... Qxd5 {[%clk 0:00:09.5]} 43. Nf4 {[%clk 0:00:09.9]} 43... Qb7 {[%clk
0:00:07.4]} 44. Nxg6 {[%clk 0:00:10.7]} 44... hxg6 {[%clk 0:00:09.3]} 45. Qf4+
{[%clk 0:00:11.7]} 45... Ke6 {[%clk 0:00:10.8]} 46. Qe3 {[%clk 0:00:10.2]} 46...
Kd5 {[%clk 0:00:10]} 47. Qd4+ {[%clk 0:00:09.5]} 47... Ke6 {[%clk 0:00:11.4]}
48. Qe3 {[%clk 0:00:10.6]} 48... Kf5 {[%clk 0:00:12.6]} 49. b4 {[%clk
0:00:10.8]} 49... Qc6 {[%clk 0:00:13.1]} 50. Qh3+ {[%clk 0:00:11.2]} 50... Ke5
{[%clk 0:00:14]} 51. Qg3+ {[%clk 0:00:12.2]} 51... Kd5 {[%clk 0:00:15.4]} 52.
Qe3 {[%clk 0:00:12.5]} 52... Kc4 {[%clk 0:00:16.8]} 53. Qd4+ {[%clk 0:00:13.4]}
53... Kb3 {[%clk 0:00:18.3]} 54. Qc5 {[%clk 0:00:14]} 54... Qd7 {[%clk
0:00:13.2]} 55. Qe5 {[%clk 0:00:08]} 55... Qd3 {[%clk 0:00:11.7]} 56. Kh2 {[%clk
0:00:05.8]} 56... Qxc3 {[%clk 0:00:12.2]} 57. Qxe4 {[%clk 0:00:06.9]} 57... Qxb4
{[%clk 0:00:11.8]} 58. Qxg6 {[%clk 0:00:06]} 58... a5 {[%clk 0:00:13.1]} 59.
Qb1+ {[%clk 0:00:06]} 59... Kc3 {[%clk 0:00:13.5]} 60. Qc1+ {[%clk 0:00:06.2]}
60... Kd3 {[%clk 0:00:14.9]} 61. Qe3+ {[%clk 0:00:06.7]} 61... Kc2 {[%clk
0:00:15.9]} 62. f4 {[%clk 0:00:06.7]} 62... a4 {[%clk 0:00:14.3]} 63. f5 {[%clk
0:00:06.3]} 63... a3 {[%clk 0:00:15.8]} 64. Qe2+ {[%clk 0:00:06.1]} 64... Kb3
{[%clk 0:00:10.3]} 65. Qd1+ {[%clk 0:00:05.2]} 65... Kb2 {[%clk 0:00:10.1]} 66.
Qe2+ {[%clk 0:00:05.6]} 66... Kc1 {[%clk 0:00:11.7]} 67. Qf1+ {[%clk 0:00:05.6]}
67... Kd2 {[%clk 0:00:13.2]} 68. f6 {[%clk 0:00:05.3]} 68... Qd6+ {[%clk
0:00:13.4]} 69. Kg2 {[%clk 0:00:05.3]} 69... Qd5+ {[%clk 0:00:14.5]} 70. Kh2
{[%clk 0:00:05.8]} 70... Qd6+ {[%clk 0:00:12.9]} 71. Kg2 {[%clk 0:00:06.5]}
71... Qd5+ {[%clk 0:00:12]} 72. Kh2 {[%clk 0:00:07.9]} 72... Qd6+ {[%clk
0:00:13.3]} 73. Kg2 {[%clk 0:00:09.3]} 73... Qf8 {[%clk 0:00:15.2]} 74. f7
{[%clk 0:00:10.1]} 74... Ke3 {[%clk 0:00:16.4]} 75. Qf3+ {[%clk 0:00:11.2]}
75... Kd4 {[%clk 0:00:17.4]} 76. Qf4+ {[%clk 0:00:12.5]} 76... Kd5 {[%clk
0:00:18.5]} 77. Qf5+ {[%clk 0:00:13.8]} 77... Kd6 {[%clk 0:00:19.9]} 78. Qf6+
{[%clk 0:00:15]} 78... Kd7 {[%clk 0:00:21.2]} 79. Kh2 {[%clk 0:00:11.8]} 79...
Qb8+ {[%clk 0:00:18.1]} 80. Kg2 {[%clk 0:00:11.9]} 80... Qf8 {[%clk 0:00:20]}
81. Kh2 {[%clk 0:00:12.7]} 81... a2 {[%clk 0:00:21.2]} 82. Qf1 {[%clk
0:00:09.7]} 82... Qd6+ {[%clk 0:00:21.7]} 83. Kg2 {[%clk 0:00:10.6]} 83... Qd5+
{[%clk 0:00:23.2]} 84. Kh2 {[%clk 0:00:11.2]} 84... Qe5+ {[%clk 0:00:24.7]} 85.
Kg2 {[%clk 0:00:12]} 85... Qg7+ {[%clk 0:00:25.8]} 86. Kh2 {[%clk 0:00:13]}
86... Ke7 {[%clk 0:00:27.3]} 87. Qe2+ {[%clk 0:00:13.2]} 87... Kxf7 {[%clk
0:00:28.5]} 88. Qxa2+ {[%clk 0:00:14.7]} 1/2-1/2

[Event "*** MasterClass Titled Tuesday Blitz"]
[Site "Chess.com"]
[Date "2017.12.12"]
[Round "8"]
[White "Tash_Boy"]
[Black "Parhamov"]
[Result "0-1"]
[WhiteElo "2462"]
[BlackElo "2735"]
[TimeControl "180+2"]
[EndTime "14:48:26 PST"]
[Termination "Parhamov won by resignation"]

1. d4 {[%clk 0:03:00.9]} 1... f5 {[%clk 0:02:59.7]} 2. g3 {[%clk 0:02:58.9]}
2... Nf6 {[%clk 0:03:00.6]} 3. Bg2 {[%clk 0:03:00.3]} 3... e6 {[%clk 0:03:02]}
4. Nf3 {[%clk 0:03:01.3]} 4... c6 {[%clk 0:03:02.9]} 5. O-O {[%clk 0:03:02.6]}
5... d5 {[%clk 0:03:04.1]} 6. Bf4 {[%clk 0:03:02.3]} 6... Be7 {[%clk 0:03:04.1]}
7. c4 {[%clk 0:03:01.6]} 7... O-O {[%clk 0:03:05.2]} 8. Nc3 {[%clk 0:03:01]}
8... Ne4 {[%clk 0:03:05.9]} 9. Qb3 {[%clk 0:02:56.2]} 9... Nd7 {[%clk
0:03:05.8]} 10. Ne5 {[%clk 0:02:55.8]} 10... Nxe5 {[%clk 0:03:03.9]} 11. dxe5
{[%clk 0:02:54.1]} 11... Nc5 {[%clk 0:02:59.5]} 12. Qc2 {[%clk 0:02:49.4]} 12...
dxc4 {[%clk 0:03:00.7]} 13. Rfd1 {[%clk 0:02:50.3]} 13... Qc7 {[%clk 0:02:59.3]}
14. Rd4 {[%clk 0:02:34.9]} 14... g5 {[%clk 0:02:55]} 15. Be3 {[%clk 0:02:35.9]}
15... b5 {[%clk 0:02:46.2]} 16. Nxb5 {[%clk 0:02:31.2]} 16... cxb5 {[%clk
0:02:47.4]} 17. Bxa8 {[%clk 0:02:32.3]} 17... Qxe5 {[%clk 0:02:48.5]} 18. Rad1
{[%clk 0:02:17.7]} 18... f4 {[%clk 0:02:48.9]} 19. Bc1 {[%clk 0:02:15.5]} 19...
Qf6 {[%clk 0:02:38.2]} 20. gxf4 {[%clk 0:02:11.1]} 20... e5 {[%clk 0:02:39.2]}
21. Bd5+ {[%clk 0:01:38.7]} 21... Kh8 {[%clk 0:02:37.3]} 22. fxe5 {[%clk
0:01:39.6]} 22... Qxf2+ {[%clk 0:02:38.2]} 23. Kh1 {[%clk 0:01:40.8]} 23... Bh3
{[%clk 0:02:40.1]} 24. Bf3 {[%clk 0:01:06.5]} 24... Rxf3 {[%clk 0:02:37.1]} 25.
exf3 {[%clk 0:01:06.8]} 25... Qxc2 {[%clk 0:02:37.6]} 0-1

[Event "*** MasterClass Titled Tuesday Blitz"]
[Site "Chess.com"]
[Date "2017.12.12"]
[Round "8"]
[White "jcibarra"]
[Black "GrigorGrigorov"]
[Result "1-0"]
[WhiteElo "2706"]
[BlackElo "2587"]
[TimeControl "180+2"]
[EndTime "14:48:41 PST"]
[Termination "jcibarra won by resignation"]

1. e4 {[%clk 0:03:01.9]} 1... c5 {[%clk 0:02:54.2]} 2. Nf3 {[%clk 0:03:02.7]}
2... d6 {[%clk 0:02:54.8]} 3. d4 {[%clk 0:03:04]} 3... cxd4 {[%clk 0:02:55.4]}
4. Nxd4 {[%clk 0:03:05.9]} 4... Nf6 {[%clk 0:02:56.7]} 5. Nc3 {[%clk 0:03:07.4]}
5... a6 {[%clk 0:02:57.3]} 6. Bg5 {[%clk 0:03:06.1]} 6... e6 {[%clk 0:02:57.7]}
7. f4 {[%clk 0:03:07.3]} 7... Qb6 {[%clk 0:02:58.3]} 8. Qd3 {[%clk 0:03:06.6]}
8... Qxb2 {[%clk 0:02:58.4]} 9. Rb1 {[%clk 0:03:08.2]} 9... Qa3 {[%clk
0:02:59.1]} 10. f5 {[%clk 0:03:09.7]} 10... Nc6 {[%clk 0:02:52.9]} 11. fxe6
{[%clk 0:03:09.9]} 11... fxe6 {[%clk 0:02:53]} 12. Nxc6 {[%clk 0:03:09.9]} 12...
bxc6 {[%clk 0:02:53.6]} 13. Be2 {[%clk 0:03:11.4]} 13... Qa5 {[%clk 0:02:53.4]}
14. Bd2 {[%clk 0:03:11.6]} 14... Qe5 {[%clk 0:02:34.5]} 15. O-O {[%clk
0:03:04.9]} 15... Be7 {[%clk 0:02:33.7]} 16. Bf4 {[%clk 0:03:01.2]} 16... Qc5+
{[%clk 0:02:33.3]} 17. Kh1 {[%clk 0:02:53.8]} 17... O-O {[%clk 0:02:20.9]} 18.
Na4 {[%clk 0:02:54.7]} 18... Qa5 {[%clk 0:02:17.7]} 19. Nb6 {[%clk 0:02:55.2]}
19... Rb8 {[%clk 0:02:12.8]} 20. Nc4 {[%clk 0:02:39.4]} 20... Qc7 {[%clk
0:02:03.4]} 21. Bxd6 {[%clk 0:02:18.2]} 21... Bxd6 {[%clk 0:02:00.2]} 22. Qxd6
{[%clk 0:02:15.6]} 22... Qxd6 {[%clk 0:02:00.4]} 23. Nxd6 {[%clk 0:02:17.5]}
23... Bd7 {[%clk 0:01:51.7]} 24. Kg1 {[%clk 0:02:11.5]} 24... a5 {[%clk
0:01:50.1]} 25. Bc4 {[%clk 0:02:04]} 25... Ng4 {[%clk 0:01:46.7]} 26. Rxf8+
{[%clk 0:01:59.6]} 26... Rxf8 {[%clk 0:01:45.6]} 27. Rb7 {[%clk 0:02:00.6]}
27... Ne5 {[%clk 0:01:39.7]} 28. Rxd7 {[%clk 0:01:47.2]} 28... Nxd7 {[%clk
0:01:40.4]} 29. Bxe6+ {[%clk 0:01:48.1]} 29... Kh8 {[%clk 0:01:42]} 30. Bxd7
{[%clk 0:01:49]} 1-0